{"text_format":"1","workbook":"xlsx","n_sheets":9,"sheets":["入力用シート","入力用シート (入力例)","学生掲出内容","CSV出力","テキスト出力","実施日数-特色","職種分類出力","都道府県","特色リスト"],"not_rendered":{"charts":0,"images":0,"macros":1,"external_links":0,"defined_names":2,"comments":0,"pivot_tables":0},"unopened":[],"bounds":{"document_bytes":16777216,"sheet_cells":100000,"rows_first":2000,"rows_last":500,"rows_between":2000,"halvings":0,"cell_chars":16384,"cell_head_chars":4096},"cells_cut":0,"cells_raw":0,"read":"whole","date_system":"1900"}

{"sheet":"入力用シート","index":0,"n_rows":50,"n_cols":10,"rows_kept":50,"cut":false,"hidden":false,"merged":[[47,1,47,3],[48,3,48,5],[49,3,49,5],[37,3,37,5],[38,3,38,5],[39,3,39,5],[41,1,41,3],[42,4,42,5],[43,4,43,5],[36,3,36,5],[21,3,21,5],[22,3,22,5],[23,3,23,5],[25,3,25,5],[26,3,26,5],[27,3,27,5],[29,1,29,3],[31,3,31,5],[32,3,32,5],[33,3,33,5],[35,1,35,3],[20,3,20,5],[1,1,1,3],[9,1,9,3],[11,3,11,5],[12,3,12,5],[13,3,13,5],[14,3,14,5],[15,3,15,5],[16,3,16,5],[17,3,17,5],[18,3,18,5],[19,3,19,5]]}
[]
[null,"北海道大学 インターンシップ 入稿フォーム"]
[]
[null,null,"入力にあたってのご注意事項"]
[null,null,"Webでの掲載となるため、環境依存文字・機種依存文字の使用はお控えください。"]
[null,null,"　（髙・﨑などの旧漢字、①②ⅠⅡなどの特殊数字は使用できません）"]
[null,null,"右側のチェック欄が「〇」と表示された状態でご入稿ください。",null,null,"チェック欄"]
[null,null,null,null,null,{"$f":"IF(COUNTIF(I:I,\"NG\"),\"×\",\"〇\")","v":"×"}]
[]
[null,"インターンシップ基本情報",null,null,null,null,null,"記入上のお願い"]
[]
[null,"コース名称\n【必須】","40文字まで",null,null,null,null,"「企業名」+「コース名」をご記入ください",{"$f":"IF(AND(D12<>\"\",LEN(D12)<41),\"\",\"NG\")","v":"NG"}]
[null,"職種分類\n【必須】","営業関連",null,null,null,null,null,{"$f":"IF(COUNTIF(J13:J22,\"OK\"),\"OK\",\"NG\")","v":"NG"},{"$f":"IF(COUNTIF(CSV出力!I2:M2,TRUE),\"OK\",\"NG\")","v":"NG"}]
[null,null,"企画・マーケティング関連",null,null,null,null,null,null,{"$f":"IF(COUNTIF(CSV出力!N2:Q2,TRUE),\"OK\",\"\")","v":""}]
[null,null,"事務・管理関連",null,null,null,null,null,null,{"$f":"IF(COUNTIF(CSV出力!R2:AA2,TRUE),\"OK\",\"\")","v":""}]
[null,null,"クリエイティブ関連",null,null,null,null,null,null,{"$f":"IF(COUNTIF(CSV出力!AB2:AF2,TRUE),\"OK\",\"\")","v":""}]
[null,null,"IT・ソフトウェア関連",null,null,null,null,null,null,{"$f":"IF(COUNTIF(CSV出力!AG2:AM2,TRUE),\"OK\",\"\")","v":""}]
[null,null,"生産・製造・品質管理関連",null,null,null,null,null,null,{"$f":"IF(COUNTIF(CSV出力!AN2:AO2,TRUE),\"OK\",\"\")","v":""}]
[null,null,"研究・開発・設計関連",null,null,null,null,null,null,{"$f":"IF(COUNTIF(CSV出力!AP2:AT2,TRUE),\"OK\",\"\")","v":""}]
[null,null,"建築・土木・設計関連",null,null,null,null,null,null,{"$f":"IF(COUNTIF(CSV出力!AU2:AW2,TRUE),\"OK\",\"\")","v":""}]
[null,null,"金融関連",null,null,null,null,null,null,{"$f":"IF(COUNTIF(CSV出力!AX2:BB2,TRUE),\"OK\",\"\")","v":""}]
[null,null,"流通サービス・販売関連",null,null,null,null,null,null,{"$f":"IF(COUNTIF(CSV出力!BC2:BG2,TRUE),\"OK\",\"\")","v":""}]
[null,"実施内容\n【必須】","4000文字まで",null,null,null,null,"各日程毎のスケジュールや内容を具体的に記入してください。未定の場合は，「昨年の内容」として記入いただいてもかまいません。",{"$f":"IF(AND(D23<>\"\",LEN(D23)<4001),\"\",\"NG\")","v":"NG"}]
[null,"実施時期・期間\n【必須】","1600文字まで",null,null,null,null,"8月～9月の間で、曜日、時間までご記入ください。\n※本学の夏期休業は8月8日（月）から9月23（金）（学部により異なる）までです。\n日程が未定の場合は、可能性のある期間、日程の決定方法がわかるように記入してください。\n\n例）2022/8/29（月）～9/9（金）の平日、実動10日間\n例）2022/8/29（月）～9/16（金）の平日で、うち8日間。日程は決定した学生の希望をもとに調整します。",{"$f":"IF(AND(D24<>\"\",LEN(D24)<1600),\"\",\"NG\")","v":"NG"}]
[null,"実施期間（検索用）",null,"2022-04-01","～","2022-06-30",null,"期間をYYYY/MM/DDの日付形式で入力してください。学生が検索に利用できます。",{"$f":"IF(AND(LEN(D25)=0,LEN(F25)=0),\"\",IF(AND(LEN(D25)<>0,LEN(F25)<>0),\"\",\"NG\"))","v":""}]
[null,"待遇・報酬\n【必須】","200文字まで",null,null,null,null,"「旅費」「日常通勤費」「宿泊費」の負担について，企業様側負担または学生負担の区別を必ず記入してください。\n企業様側負担の場合の条件（会社名の領収書が必要，登場証明書が必要，会社が手配した便の乗船が必要，支払い上限金額　等）を必ず記入してください。",{"$f":"IF(AND(D26<>\"\",LEN(D26)<200),\"\",\"NG\")","v":"NG"}]
[null,"実施場所\n【必須】",null,null,null,null,null,"複数選択可能",{"$f":"IF(COUNTIF(CSV出力!BT2:DX2,TRUE),\"\",\"NG\")","v":"NG"}]
[null,"実施場所（詳細）\n【必須】","1600文字まで",null,null,null,null,"学生の出勤先がわかるよう，本社や社名，住所，駅名を具体的に記入してください。複数箇所がある場合は，決定方法等も記入してください。",{"$f":"IF(AND(D28<>\"\",LEN(D28)<1600),\"\",\"NG\")","v":"NG"}]
[]
[null,"応募に関して"]
[]
[null,"応募資格\n【必須】","2000文字まで",null,null,null,null,"参加可能な学年（卒業・修了予定年）をすべて記入してください。参加不可能な学年がある場合は，必ず明記してください。\n学部や専攻の指定がある場合も，必ず具体的に記入してください。\n※全学インターンシップは学部１・２年生を含む全学年，全学部・院の学生が参加するインターンシップです。学生とのマッチング終了後に，「特定の学年や特定の専攻以外は受入不可」と判明することがないように，必ず確認のうえ，明確に記入をお願いします。",{"$f":"IF(AND(D32<>\"\",LEN(D32)<2000),\"\",\"NG\")","v":"NG"}]
[null,"募集人数\n【必須】","1600文字まで",null,null,null,null,"北大生枠として受入可能な人数を指定してください。こちらに記入いただいた人数を最大人数としてマッチングを行います。）\n（例　３名→応募学生を最大３名までマッチング）\n条件ごとに人数が異なる場合は，具体的に記入してください。\n（例　学部３年生は１名，修士１年生は２名，合計３名まで）\n特に，理系で専攻の指定が異なる場合は，コースをわけて作成いただくか，こちらに明確に記入をお願いします。",{"$f":"IF(AND(D33<>\"\",LEN(D33)<1600),\"\",\"NG\")","v":"NG"}]
[null,"お問い合わせ先\n【必須】","1600文字まで",null,null,null,null,"今回のインターンシップ担当者につながる連絡先を記入してください。\n会社名，部署名，担当者名，電話番号，メールアドレス，住所すべての記入をお願いいたします。",{"$f":"IF(AND(D34<>\"\",LEN(D34)<1600),\"\",\"NG\")","v":"NG"}]
[]
[null,"任意項目"]
[null,"特色検索",null,null,null,null,null,null,{"$f":"IF(COUNTIF(CSV出力!EI2:EM2,TRUE),\"\",\"NG\")","v":"NG"}]
[null,"身につく力１\n【必須】",null,null,null,null,null,null,{"$f":"IF(CSV出力!EN2<>\"未選択\",\"\",\"NG\")","v":"NG"}]
[null,"身につく力２",null,null,null,null,null,null,{"$f":"IF(CSV出力!EO2<>\"未選択\",\"\",\"NG\")","v":"NG"}]
[null,"身につく力３",null,null,null,null,null,null,{"$f":"IF(CSV出力!EP2<>\"未選択\",\"\",\"NG\")","v":"NG"}]
[]
[null,"確認欄"]
[null,"確認項目１\n【必須】",null,null,"北大生を選考なしで8日以上受入れることに同意します。\n（受入条件に従って，大学側でマッチングした学生を受入ることへの同意です。したがって企業側での選考は行えません）",null,null,null,{"$f":"IF(COUNTIF(J43,TRUE),\"\",\"NG\")","v":"NG"},false]
[null,"確認項目２\n【必須】",null,null,"文部科学省・日本学生支援機構によるインターンシップ調査時、受入申込み企業名の記入を求められることがあります。\nその際に貴社名を公表する事について、同意の可否を選択してください。"]
[]
[]
[]
[null,"大学入力欄"]
[null,"業種",null,null,null,null,null,"記入不要\n"]
[null,"CODE",null,null,null,null,null,"記入不要\n"]

{"sheet":"入力用シート (入力例)","index":1,"n_rows":50,"n_cols":10,"rows_kept":50,"cut":false,"hidden":false,"merged":[[47,1,47,3],[48,3,48,5],[49,3,49,5],[37,3,37,5],[38,3,38,5],[39,3,39,5],[41,1,41,3],[42,4,42,5],[43,4,43,5],[36,3,36,5],[21,3,21,5],[22,3,22,5],[23,3,23,5],[25,3,25,5],[26,3,26,5],[27,3,27,5],[29,1,29,3],[31,3,31,5],[32,3,32,5],[33,3,33,5],[35,1,35,3],[20,3,20,5],[1,1,1,3],[9,1,9,3],[11,3,11,5],[12,3,12,5],[13,3,13,5],[14,3,14,5],[15,3,15,5],[16,3,16,5],[17,3,17,5],[18,3,18,5],[19,3,19,5]]}
[]
[null,"北海道大学 インターンシップ 入稿フォーム"]
[]
[null,null,"入力にあたってのご注意事項"]
[null,null,"Webでの掲載となるため、環境依存文字・機種依存文字の使用はお控えください。"]
[null,null,"　（髙・﨑などの旧漢字、①②ⅠⅡなどの特殊数字は使用できません）"]
[null,null,"右側のチェック欄が「〇」と表示された状態でご入稿ください。",null,null,"チェック欄"]
[null,null,null,null,null,{"$f":"IF(COUNTIF(I:I,\"NG\"),\"×\",\"〇\")","v":"×"}]
[]
[null,"インターンシップ基本情報",null,null,null,null,null,"記入上のお願い"]
[]
[null,"コース名称\n【必須】","40文字まで","株式会社●●●＿技術系コース",null,null,null,"「企業名」+「コース名」をご記入ください",{"$f":"IF(AND(D12<>\"\",LEN(D12)<41),\"\",\"NG\")","v":""}]
[null,"職種分類\n【必須】","営業関連",null,null,null,null,null,{"$f":"IF(COUNTIF(J13:J22,\"OK\"),\"OK\",\"NG\")","v":"NG"},{"$f":"IF(COUNTIF(CSV出力!I2:M2,TRUE),\"OK\",\"NG\")","v":"NG"}]
[null,null,"企画・マーケティング関連",null,null,null,null,null,null,{"$f":"IF(COUNTIF(CSV出力!N2:Q2,TRUE),\"OK\",\"\")","v":""}]
[null,null,"事務・管理関連",null,null,null,null,null,null,{"$f":"IF(COUNTIF(CSV出力!R2:AA2,TRUE),\"OK\",\"\")","v":""}]
[null,null,"クリエイティブ関連",null,null,null,null,null,null,{"$f":"IF(COUNTIF(CSV出力!AB2:AF2,TRUE),\"OK\",\"\")","v":""}]
[null,null,"IT・ソフトウェア関連",null,null,null,null,null,null,{"$f":"IF(COUNTIF(CSV出力!AG2:AM2,TRUE),\"OK\",\"\")","v":""}]
[null,null,"生産・製造・品質管理関連",null,null,null,null,null,null,{"$f":"IF(COUNTIF(CSV出力!AN2:AO2,TRUE),\"OK\",\"\")","v":""}]
[null,null,"研究・開発・設計関連",null,null,null,null,null,null,{"$f":"IF(COUNTIF(CSV出力!AP2:AT2,TRUE),\"OK\",\"\")","v":""}]
[null,null,"建築・土木・設計関連",null,null,null,null,null,null,{"$f":"IF(COUNTIF(CSV出力!AU2:AW2,TRUE),\"OK\",\"\")","v":""}]
[null,null,"金融関連",null,null,null,null,null,null,{"$f":"IF(COUNTIF(CSV出力!AX2:BB2,TRUE),\"OK\",\"\")","v":""}]
[null,null,"流通サービス・販売関連",null,null,null,null,null,null,{"$f":"IF(COUNTIF(CSV出力!BC2:BG2,TRUE),\"OK\",\"\")","v":""}]
[null,"実施内容\n【必須】","4000文字まで","技術系部署の仕事を８日間体験いただき，最終日はプレゼンテーションを行います。\n１日目：オリエンテーション，機密保持注意事項\n２日目～７日目：●●\n８日目：プレゼンテーション",null,null,null,"各日程毎のスケジュールや内容を具体的に記入してください。未定の場合は，「昨年の内容」として記入いただいてもかまいません。",{"$f":"IF(AND(D23<>\"\",LEN(D23)<4001),\"\",\"NG\")","v":""}]
[null,"実施時期・期間\n【必須】","1600文字まで","2022/8/22（月）～8/31（水）または2022/9/7（水）～9/16（金）のいずれか。実働８日間。\n土日祝は休日となります。\n日程は学生の希望を元に，最終的には企業側で決定します。各日程５名ずつを予定。",null,null,null,"8月～9月の間で、曜日、時間までご記入ください。\n※本学の夏期休業は8月8日（月）から9月23（金）（学部により異なる）までです。\n日程が未定の場合は、可能性のある期間、日程の決定方法がわかるように記入してください。\n\n例）2022/8/29（月）～9/9（金）の平日、実動10日間\n例）2022/8/29（月）～9/16（金）の平日で、うち8日間。日程は決定した学生の希望をもとに調整します。",{"$f":"IF(AND(D24<>\"\",LEN(D24)<1600),\"\",\"NG\")","v":""}]
[null,"実施期間（検索用）",null,"2022-08-22","～","2022-09-16",null,"期間をYYYY/MM/DDの日付形式で入力してください。学生が検索に利用できます。",{"$f":"IF(AND(LEN(D25)=0,LEN(F25)=0),\"\",IF(AND(LEN(D25)<>0,LEN(F25)<>0),\"\",\"NG\"))","v":""}]
[null,"待遇・報酬\n【必須】","200文字まで","旅費：企業側負担。会社名義の領収書と，搭乗半券（または証明書）等，乗船（乗車）を証明するものが必要。\n日常通勤費：企業側負担。交通費台帳記入のうえ，精算。\n宿泊費：社員寮手配。（1日1000円負担いただきます）",null,null,null,"「旅費」「日常通勤費」「宿泊費」の負担について，企業様側負担または学生負担の区別を必ず記入してください。\n企業様側負担の場合の条件（会社名の領収書が必要，登場証明書が必要，会社が手配した便の乗船が必要，支払い上限金額　等）を必ず記入してください。",{"$f":"IF(AND(D26<>\"\",LEN(D26)<200),\"\",\"NG\")","v":""}]
[null,"実施場所\n【必須】",null,null,null,null,null,"複数選択可能",{"$f":"IF(COUNTIF(CSV出力!BT2:DX2,TRUE),\"\",\"NG\")","v":"NG"}]
[null,"実施場所（詳細）\n【必須】","1600文字まで","札幌本社。札幌駅から徒歩●分。北海道札幌市北区北●条西●丁目\n1日程度支社（●●駅）への出勤を予定。",null,null,null,"学生の出勤先がわかるよう，本社や社名，住所，駅名を具体的に記入してください。複数箇所がある場合は，決定方法等も記入してください。",{"$f":"IF(AND(D28<>\"\",LEN(D28)<1600),\"\",\"NG\")","v":""}]
[]
[null,"応募に関して"]
[]
[null,"応募資格\n【必須】","2000文字まで","学部３年生以上が参加可能。（学部３年～６年，修士１～２年）\n●●系の知識がある方。",null,null,null,"参加可能な学年（卒業・修了予定年）をすべて記入してください。参加不可能な学年がある場合は，必ず明記してください。\n学部や専攻の指定がある場合も，必ず具体的に記入してください。\n※全学インターンシップは学部１・２年生を含む全学年，全学部・院の学生が参加するインターンシップです。学生とのマッチング終了後に，「特定の学年や特定の専攻以外は受入不可」と判明することがないように，必ず確認のうえ，明確に記入をお願いします。",{"$f":"IF(AND(D32<>\"\",LEN(D32)<2000),\"\",\"NG\")","v":""}]
[null,"募集人数\n【必須】","1600文字まで","技術系コース●名。",null,null,null,"北大生枠として受入可能な人数を指定してください。こちらに記入いただいた人数を最大人数としてマッチングを行います。）\n（例　３名→応募学生を最大３名までマッチング）\n条件ごとに人数が異なる場合は，具体的に記入してください。\n（例　学部３年生は１名，修士１年生は２名，合計３名まで）\n特に，理系で専攻の指定が異なる場合は，コースをわけて作成いただくか，こちらに明確に記入をお願いします。",{"$f":"IF(AND(D33<>\"\",LEN(D33)<1600),\"\",\"NG\")","v":""}]
[null,"お問い合わせ先\n【必須】","1600文字まで","〒060-0808\n北海道札幌市北区北●条西●丁目\n株式会社●●●　人事部　担当：●●●",null,null,null,"今回のインターンシップ担当者につながる連絡先を記入してください。\n会社名，部署名，担当者名，電話番号，メールアドレス，住所すべての記入をお願いいたします。",{"$f":"IF(AND(D34<>\"\",LEN(D34)<1600),\"\",\"NG\")","v":""}]
[]
[null,"任意項目"]
[null,"特色検索",null,null,null,null,null,null,{"$f":"IF(COUNTIF(CSV出力!EI2:EM2,TRUE),\"\",\"NG\")","v":"NG"}]
[null,"身につく力１\n【必須】",null,null,null,null,null,null,{"$f":"IF(CSV出力!EN2<>\"未選択\",\"\",\"NG\")","v":"NG"}]
[null,"身につく力２",null,null,null,null,null,null,{"$f":"IF(CSV出力!EO2<>\"未選択\",\"\",\"NG\")","v":"NG"}]
[null,"身につく力３",null,null,null,null,null,null,{"$f":"IF(CSV出力!EP2<>\"未選択\",\"\",\"NG\")","v":"NG"}]
[]
[null,"確認欄"]
[null,"確認項目１\n【必須】",null,null,"北大生を選考なしで8日以上受入れることに同意します。\n（受入条件に従って，大学側でマッチングした学生を受入ることへの同意です。したがって企業側での選考は行えません）",null,null,null,{"$f":"IF(COUNTIF(J43,TRUE),\"\",\"NG\")","v":""},true]
[null,"確認項目２\n【必須】",null,null,"文部科学省・日本学生支援機構によるインターンシップ調査時、受入申込み企業名の記入を求められることがあります。\nその際に貴社名を公表する事について、同意の可否を選択してください。"]
[]
[]
[]
[null,"大学入力欄"]
[null,"業種",null,"建設業",null,null,null,"記入不要\n"]
[null,"CODE",null,"35",null,null,null,"記入不要\n"]

{"sheet":"学生掲出内容","index":2,"n_rows":31,"n_cols":5,"rows_kept":31,"cut":false,"hidden":false,"merged":[[6,2,6,4],[7,2,7,4],[9,2,9,4],[10,2,10,4],[13,2,13,4],[8,2,8,4],[12,2,12,4],[21,2,21,4],[14,2,14,4],[19,2,19,4],[18,2,18,4],[22,2,22,4],[15,2,15,4],[17,2,17,4],[20,2,20,4],[1,2,1,4],[2,2,2,4],[3,2,3,4],[4,2,4,4],[5,2,5,4],[27,2,27,4],[28,2,28,4],[29,2,29,4],[30,2,30,4],[23,2,23,4],[25,2,25,4],[26,2,26,4]]}
[null,"UC項目名","内容"]
[null,"対象種別","大学院・大学"]
[null,"情報有効期間","北海道大学様、ご希望の掲載期間"]
[null,"インターンシップ種類","インターンシップ"]
[null,"エントリー","なし"]
[null,"外部リンク設定","なし"]
[null,"コース名称\n【必須】",{"$f":"\"【\"&入力用シート!D50&\"】\"&入力用シート!D12","v":"【】"}]
[null,"コース紹介\n【必須】",{"$f":"\"【北海道大学全学インターンシップ】【\"&入力用シート!D49&\"】\"","v":"【北海道大学全学インターンシップ】【】"}]
[null,"職種分類\n【必須】","チェックボックスより"]
[null,"実施内容\n【必須】",{"$f":"入力用シート!D23","v":0}]
[null,"実施時期・期間\n【必須】",{"$f":"入力用シート!D24","v":0}]
[null,"実施期間（検索用）",{"$f":"入力用シート!D25","v":"2022-04-01"},"～",{"$f":"入力用シート!F25","v":"2022-06-30"}]
[null,"実施日数（検索用）","チェックボックスより"]
[null,"待遇・報酬\n【必須】",{"$f":"入力用シート!D26","v":0}]
[null,"実施場所\n【必須】","チェックボックスより"]
[null,"実施場所（詳細）\n【必須】",{"$f":"入力用シート!D28","v":0}]
[]
[null,"応募資格\n【必須】",{"$f":"入力用シート!D32","v":0}]
[null,"応募方法","【キャリアセンター注】北海道大学全学インターンシップ所定の方法で大学に申込をおこなってください。"]
[null,"応募受付期間","【キャリアセンター注】大学の指示に従ってください。"]
[null,"募集人数\n【必須】","='入力用シート'!D27"]
[null,"保健","【キャリアセンター注】大学で保険加入（傷害保険及び賠償責任保険）を指示します。"]
[null,"覚書提出","【キャリアセンター注】全学インターンシップでは全企業と覚書を取り交わします。"]
[null,"お問い合わせ先\n【必須】",{"$f":"入力用シート!D34","v":0}]
[]
[null,"任意項目タイトル","北海道大学全学インターンシップ"]
[null,"任意項目本文","北大生限定"]
[null,"特色検索","チェックボックスより"]
[null,"身につく力１\n【必須】","選択肢より"]
[null,"身につく力２","選択肢より"]
[null,"身につく力３","選択肢より"]

{"sheet":"CSV出力","index":3,"n_rows":2,"n_cols":146,"rows_kept":2,"cut":false,"hidden":false,"merged":[]}
["対象種別","情報有効期間（FROM）","情報有効期間（TO）","エントリー","外部リンク設定","インターンシップ種類","コース名称","コース紹介","法人向け営業（得意先が中心）","法人向け営業（新規開拓が中心）","個人向け営業（得意先が中心）","個人向け営業（新規開拓が中心）","MR","調査・マーケティング","商品企画・プランニング","営業推進・販売促進","経営企画","一般事務","貿易事務・国際事務","医療事務","秘書・受付","宣伝・広報","人事・教育・労務","総務・業務","財務・経理・会計","法務・特許・審査","物流・在庫管理","デザイナー","パタンナー","編集・制作","記者・ライター","ゲームクリエイター","システムアナリスト・コンサルタント","システムエンジニア","プログラマー","ネットワークエンジニア","セールスエンジニア","カスタマーエンジニア","システム運用・保守","生産管理・品質管理","生産・製造機器運用・メンテナンス","基礎研究","応用研究","技術開発","生産・製造技術開発","機械・電機・電子機器設計","建築土木企画・設計","調査・測量・製図・積算","施工管理","トレーダー・ディーラー","資産運用（ファンドマネージャー）","融資","証券アナリスト","アクチュアリー","スーパーバイザー","バイヤー","店長・店長候補（店舗運営）","販売スタッフ・接客","MD（マーチャンダイザー）","実施内容","実施時期・期間","実施期間（検索用）FROM","実施期間（検索用）TO","1日","2-3程度","1週間程度","2週間程度","1か月程度","1か月以上","未定","待遇・報酬","北海道　","青森県　","岩手県　","宮城県　","秋田県　","山形県　","福島県　","茨城県　","栃木県　","群馬県　","埼玉県　","千葉県　","東京都　","神奈川県","新潟県　","富山県　","石川県　","福井県　","山梨県　","長野県　","岐阜県　","静岡県　","愛知県　","三重県　","滋賀県　","京都府　","大阪府　","兵庫県　","奈良県　","和歌山県","鳥取県　","島根県　","岡山県　","広島県　","山口県　","徳島県　","香川県　","愛媛県　","高知県　","福岡県　","佐賀県　","長崎県　","熊本県　","大分県　","宮崎県　","鹿児島県","沖縄県　","中国","韓国","台湾","シンガポール","タイ","ベトナム","アメリカ合衆国","その他アジア","その他海外","海外","実施場所（詳細）","応募資格","応募方法","応募受付期間","募集人数","保健","覚書提出","お問い合わせ先","任意項目タイトル","任意項目本文","報酬あり","土日祝のみ","交通費あり","文系歓迎","理系歓迎","身につく力1","身につく力2","身につく力3"]
["大学院・大学","yyyy/mm/dd","yyyy/mm/dd","なし","なし","インターンシップ",{"$f":"\"【\"&入力用シート!D50&\"】\"&入力用シート!D12","v":"【】"},{"$f":"\"【北海道大学全学インターンシップ】【\"&入力用シート!D49&\"】\"","v":"【北海道大学全学インターンシップ】【】"},{"$f":"職種分類出力!B6","v":false},{"$f":"職種分類出力!C6","v":false},{"$f":"職種分類出力!D6","v":false},{"$f":"職種分類出力!E6","v":false},{"$f":"職種分類出力!F6","v":false},{"$f":"職種分類出力!G6","v":false},{"$f":"職種分類出力!H6","v":false},{"$f":"職種分類出力!I6","v":false},{"$f":"職種分類出力!J6","v":false},{"$f":"職種分類出力!K6","v":false},{"$f":"職種分類出力!L6","v":false},{"$f":"職種分類出力!M6","v":false},{"$f":"職種分類出力!N6","v":false},{"$f":"職種分類出力!O6","v":false},{"$f":"職種分類出力!P6","v":false},{"$f":"職種分類出力!Q6","v":false},{"$f":"職種分類出力!R6","v":false},{"$f":"職種分類出力!S6","v":false},{"$f":"職種分類出力!T6","v":false},{"$f":"職種分類出力!U6","v":false},{"$f":"職種分類出力!V6","v":false},{"$f":"職種分類出力!W6","v":false},{"$f":"職種分類出力!X6","v":false},{"$f":"職種分類出力!Y6","v":false},{"$f":"職種分類出力!Z6","v":false},{"$f":"職種分類出力!AA6","v":false},{"$f":"職種分類出力!AB6","v":false},{"$f":"職種分類出力!AC6","v":false},{"$f":"職種分類出力!AD6","v":false},{"$f":"職種分類出力!AE6","v":false},{"$f":"職種分類出力!AF6","v":false},{"$f":"職種分類出力!AG6","v":false},{"$f":"職種分類出力!AH6","v":false},{"$f":"職種分類出力!AI6","v":false},{"$f":"職種分類出力!AJ6","v":false},{"$f":"職種分類出力!AK6","v":false},{"$f":"職種分類出力!AL6","v":false},{"$f":"職種分類出力!AM6","v":false},{"$f":"職種分類出力!AN6","v":false},{"$f":"職種分類出力!AO6","v":false},{"$f":"職種分類出力!AP6","v":false},{"$f":"職種分類出力!AQ6","v":false},{"$f":"職種分類出力!AR6","v":false},{"$f":"職種分類出力!AS6","v":false},{"$f":"職種分類出力!AT6","v":false},{"$f":"職種分類出力!AU6","v":false},{"$f":"職種分類出力!AV6","v":false},{"$f":"職種分類出力!AW6","v":false},{"$f":"職種分類出力!AX6","v":false},{"$f":"職種分類出力!AY6","v":false},{"$f":"職種分類出力!AZ6","v":false},{"$f":"入力用シート!D23","v":0},{"$f":"入力用シート!D24","v":0},{"$f":"入力用シート!D25","v":"2022-04-01"},{"$f":"入力用シート!F25","v":"2022-06-30"},{"$f":"'実施日数-特色'!A2","v":true},{"$f":"'実施日数-特色'!B2","v":false},{"$f":"'実施日数-特色'!C2","v":false},{"$f":"'実施日数-特色'!D2","v":false},{"$f":"'実施日数-特色'!E2","v":false},{"$f":"'実施日数-特色'!F2","v":false},{"$f":"'実施日数-特色'!G2","v":false},{"$f":"入力用シート!D26","v":0},{"$f":"都道府県!C2","v":false},{"$f":"都道府県!C3","v":false},{"$f":"都道府県!C4","v":false},{"$f":"都道府県!C5","v":false},{"$f":"都道府県!C6","v":false},{"$f":"都道府県!C7","v":false},{"$f":"都道府県!C8","v":false},{"$f":"都道府県!C9","v":false},{"$f":"都道府県!C10","v":false},{"$f":"都道府県!C11","v":false},{"$f":"都道府県!C12","v":false},{"$f":"都道府県!C13","v":false},{"$f":"都道府県!C14","v":false},{"$f":"都道府県!C15","v":false},{"$f":"都道府県!C16","v":false},{"$f":"都道府県!C17","v":false},{"$f":"都道府県!C18","v":false},{"$f":"都道府県!C19","v":false},{"$f":"都道府県!C20","v":false},{"$f":"都道府県!C21","v":false},{"$f":"都道府県!C22","v":false},{"$f":"都道府県!C23","v":false},{"$f":"都道府県!C24","v":false},{"$f":"都道府県!C25","v":false},{"$f":"都道府県!C26","v":false},{"$f":"都道府県!C27","v":false},{"$f":"都道府県!C28","v":false},{"$f":"都道府県!C29","v":false},{"$f":"都道府県!C30","v":false},{"$f":"都道府県!C31","v":false},{"$f":"都道府県!C32","v":false},{"$f":"都道府県!C33","v":false},{"$f":"都道府県!C34","v":false},{"$f":"都道府県!C35","v":false},{"$f":"都道府県!C36","v":false},{"$f":"都道府県!C37","v":false},{"$f":"都道府県!C38","v":false},{"$f":"都道府県!C39","v":false},{"$f":"都道府県!C40","v":false},{"$f":"都道府県!C41","v":false},{"$f":"都道府県!C42","v":false},{"$f":"都道府県!C43","v":false},{"$f":"都道府県!C44","v":false},{"$f":"都道府県!C45","v":false},{"$f":"都道府県!C46","v":false},{"$f":"都道府県!C47","v":false},{"$f":"都道府県!C48","v":false},{"$f":"都道府県!C49","v":false},{"$f":"都道府県!C50","v":false},{"$f":"都道府県!C51","v":false},{"$f":"都道府県!C52","v":false},{"$f":"都道府県!C53","v":false},{"$f":"都道府県!C54","v":false},{"$f":"都道府県!C55","v":false},{"$f":"都道府県!C56","v":false},{"$f":"都道府県!C57","v":false},{"$f":"都道府県!C58","v":false},{"$f":"入力用シート!D28","v":0},{"$f":"入力用シート!D32","v":0},"【キャリアセンター注】北海道大学全学インターンシップ所定の方法で大学に申込をおこなってください。","【キャリアセンター注】大学の指示に従ってください。",{"$f":"入力用シート!D33","v":0},"【キャリアセンター注】大学で保険加入（傷害保険及び賠償責任保険）を指示します。","【キャリアセンター注】全学インターンシップでは全企業と覚書を取り交わします。",{"$f":"入力用シート!D34","v":0},"北海道大学全学インターンシップ","北大生限定",{"$f":"'実施日数-特色'!H2","v":false},{"$f":"'実施日数-特色'!I2","v":false},{"$f":"'実施日数-特色'!J2","v":false},{"$f":"'実施日数-特色'!K2","v":false},{"$f":"'実施日数-特色'!L2","v":false},{"$f":"VLOOKUP('実施日数-特色'!M2,特色リスト!$A$13:$B$23,2,0)","v":"未選択"},{"$f":"VLOOKUP('実施日数-特色'!N2,特色リスト!$A$13:$B$23,2,0)","v":"未選択"},{"$f":"VLOOKUP('実施日数-特色'!O2,特色リスト!$A$13:$B$23,2,0)","v":"未選択"}]

{"sheet":"テキスト出力","index":4,"n_rows":2,"n_cols":13,"rows_kept":2,"cut":false,"hidden":true,"merged":[]}
["コース名称","コース紹介","実施内容","実施時期・期間","実施期間（検索用）FROM","実施期間（検索用）TO","待遇・報酬","実施場所（詳細）","応募資格","募集人数","お問い合わせ先","任意項目タイトル","任意項目本文"]
[{"$f":"\"【\"&#REF!&\"】\"&#REF!","v":{"$error":"#REF!"}},{"$f":"\"【北海道大学全学インターンシップ】【\"&#REF!&\"】\"","v":{"$error":"#REF!"}},{"$f":"#REF!","v":{"$error":"#REF!"}},{"$f":"#REF!","v":{"$error":"#REF!"}},{"$f":"#REF!","v":{"$error":"#REF!"}},{"$f":"#REF!","v":{"$error":"#REF!"}},{"$f":"#REF!","v":{"$error":"#REF!"}},{"$f":"#REF!","v":{"$error":"#REF!"}},{"$f":"#REF!","v":{"$error":"#REF!"}},{"$f":"#REF!","v":{"$error":"#REF!"}},{"$f":"#REF!","v":{"$error":"#REF!"}},"北海道大学全学インターンシップ","北大生限定"]

{"sheet":"実施日数-特色","index":5,"n_rows":2,"n_cols":15,"rows_kept":2,"cut":false,"hidden":true,"merged":[]}
["1日","2-3程度","1週間程度","2週間程度","1か月程度","1か月以上","未定","報酬あり","土日祝のみ","交通費あり","文系歓迎","理系歓迎","身につく力１","身につく力2","身につく力3"]
[true,false,false,false,false,false,false,false,false,false,false,false,1,1,1]

{"sheet":"職種分類出力","index":6,"n_rows":6,"n_cols":52,"rows_kept":6,"cut":false,"hidden":true,"merged":[]}
["大職種コード",1000,1000,1000,1000,1000,2000,2000,2000,2000,3000,3000,3000,3000,3000,3000,3000,3000,3000,3000,4000,4000,4000,4000,4000,5000,5000,5000,5000,5000,5000,5000,6000,6000,7000,7000,7000,7000,7000,8000,8000,8000,9000,9000,9000,9000,9000,"A000","A000","A000","A000","A000"]
["大職種","営業関連","営業関連","営業関連","営業関連","営業関連","企画・マーケティング関連","企画・マーケティング関連","企画・マーケティング関連","企画・マーケティング関連","事務・管理関連","事務・管理関連","事務・管理関連","事務・管理関連","事務・管理関連","事務・管理関連","事務・管理関連","事務・管理関連","事務・管理関連","事務・管理関連","クリエイティブ関連","クリエイティブ関連","クリエイティブ関連","クリエイティブ関連","クリエイティブ関連","ＩＴ・ソフトウエア関連","ＩＴ・ソフトウエア関連","ＩＴ・ソフトウエア関連","ＩＴ・ソフトウエア関連","ＩＴ・ソフトウエア関連","ＩＴ・ソフトウエア関連","ＩＴ・ソフトウエア関連","生産・製造・品質管理関連","生産・製造・品質管理関連","研究・開発・設計関連","研究・開発・設計関連","研究・開発・設計関連","研究・開発・設計関連","研究・開発・設計関連","建築・土木設計関連","建築・土木設計関連","建築・土木設計関連","金融関連","金融関連","金融関連","金融関連","金融関連","流通サービス・販売関連","流通サービス・販売関連","流通サービス・販売関連","流通サービス・販売関連","流通サービス・販売関連"]
["小職種コード",1010,1020,1030,1040,1050,2010,2020,2030,2040,3010,3020,3030,3040,3050,3060,3070,3080,3090,"30A0",4010,4015,4020,4030,4040,5010,5020,5030,5040,5050,5060,5070,6010,6020,7010,7020,7030,7040,7050,8010,8020,8030,9010,9020,9030,9040,9050,"A010","A020","A030","A040","A050"]
["小職種","法人向け営業（得意先が中心）","法人向け営業（新規開拓が中心）","個人向け営業（得意先が中心）","個人向け営業（新規開拓が中心）","MR","調査・マーケティング","商品企画・プランニング","営業推進・販売促進","経営企画","一般事務","貿易事務・国際事務","医療事務","秘書・受付","宣伝・広報","人事・教育・労務","総務・業務","財務・経理・会計","法務・特許・審査","物流・在庫管理","デザイナー","パタンナー","編集・制作","記者・ライター","ゲームクリエイター","システムアナリスト・コンサルタント","システムエンジニア","プログラマー","ネットワークエンジニア","セールスエンジニア","カスタマーエンジニア","システム運用・保守","生産管理・品質管理","生産・製造機器運用・メンテナンス","基礎研究","応用研究","技術開発","生産・製造技術開発","機械・電機・電子機器設計","建築土木企画・設計","調査・測量・製図・積算","施工管理","トレーダー・ディーラー","資産運用（ファンドマネージャー）","融資","証券アナリスト","アクチュアリー","スーパーバイザー","バイヤー","店長・店長候補（店舗運営）","販売スタッフ・接客","MD（マーチャンダイザー）"]
["文科省職種コード","d0101","d0101","d0101","d0101","d0101","c0101","c0101","c0101","c0101","c0101","c0101","c0101","c0101","c0101","c0101","c0101","c0101","c0101","c0101","b1301","b1301","b1401","b1401","b0601","b0601","b0601","b0601","b0601","d0101","b0601","b0601","b0404","h0101","b0101","b0101","b0304","b0304","b0304","b0501","b0501","b0501","d0101","b1401","d0101","b1401","b1401","a0101","d0101","d0101","d0101","d0101"]
["判別",false,false,false,false,false,false,false,false,false,false,false,false,false,false,false,false,false,false,false,false,false,false,false,false,false,false,false,false,false,false,false,false,false,false,false,false,false,false,false,false,false,false,false,false,false,false,false,false,false,false,false]

{"sheet":"都道府県","index":7,"n_rows":58,"n_cols":3,"rows_kept":58,"cut":false,"hidden":true,"merged":[]}
["都道府県・国","コード"]
["北海道　",1,false]
["青森県　",2,false]
["岩手県　",3,false]
["宮城県　",4,false]
["秋田県　",5,false]
["山形県　",6,false]
["福島県　",7,false]
["茨城県　",8,false]
["栃木県　",9,false]
["群馬県　",10,false]
["埼玉県　",11,false]
["千葉県　",12,false]
["東京都　",13,false]
["神奈川県",14,false]
["新潟県　",15,false]
["富山県　",16,false]
["石川県　",17,false]
["福井県　",18,false]
["山梨県　",19,false]
["長野県　",20,false]
["岐阜県　",21,false]
["静岡県　",22,false]
["愛知県　",23,false]
["三重県　",24,false]
["滋賀県　",25,false]
["京都府　",26,false]
["大阪府　",27,false]
["兵庫県　",28,false]
["奈良県　",29,false]
["和歌山県",30,false]
["鳥取県　",31,false]
["島根県　",32,false]
["岡山県　",33,false]
["広島県　",34,false]
["山口県　",35,false]
["徳島県　",36,false]
["香川県　",37,false]
["愛媛県　",38,false]
["高知県　",39,false]
["福岡県　",40,false]
["佐賀県　",41,false]
["長崎県　",42,false]
["熊本県　",43,false]
["大分県　",44,false]
["宮崎県　",45,false]
["鹿児島県",46,false]
["沖縄県　",47,false]
["中国","57",false]
["韓国","60",false]
["台湾","61",false]
["シンガポール","62",false]
["タイ","63",false]
["ベトナム","64",false]
["アメリカ合衆国","65",false]
["その他アジア","66",false]
["その他海外","67",false]
["海外","99",false]

{"sheet":"特色リスト","index":8,"n_rows":23,"n_cols":2,"rows_kept":23,"cut":false,"hidden":true,"merged":[]}
["選択してください"]
["立場や意見の違う人とコミュニケーションをとる力"]
["プロジェクトやチームを率いるリーダーシップ力"]
["さまざまなメンバーで物事を進めるチームワーク力"]
["バイタリティーをもって、物事に取り組む力"]
["目的に向かってチャレンジする力"]
["新しいアイデアや価値を生み出す発想力"]
["議題に対し論理的にアプローチする思考力"]
["議題の解決に向けたプロセスを明らかにし準備する力"]
["現状を分析し目的や課題を明らかにする力"]
["相手の意見を尊重しつつ、自分の考えを発信する力"]
[]
[1,"未選択"]
[2,"立場や意見の違う人とコミュニケーションをとる力"]
[3,"プロジェクトやチームを率いるリーダーシップ力"]
[4,"さまざまなメンバーで物事を進めるチームワーク力"]
[5,"バイタリティーをもって、物事に取り組む力"]
[6,"目的に向かってチャレンジする力"]
[7,"新しいアイデアや価値を生み出す発想力"]
[8,"議題に対し論理的にアプローチする思考力"]
[9,"議題の解決に向けたプロセスを明らかにし準備する力"]
[10,"現状を分析し目的や課題を明らかにする力"]
[11,"相手の意見を尊重しつつ、自分の考えを発信する力"]